[Event "Late-Titled-Tuesday-Blitz-April-30-2024"]
[Site "Chess.com"]
[Date "2024.04.30"]
[Round "6"]
[White "MiguelBestard1981"]
[Black "SandwichOSaumon"]
[Result "1-0"]
[WhiteElo "2151"]
[BlackElo "2366"]
[TimeControl "180+1"]
[EndTime "15:05:34 PDT"]
[Termination "MiguelBestard1981 won by resignation"]

1. e4 {[%clk 0:02:01.5]} 1... c5 {[%clk 0:02:58]} 2. b4 {[%clk 0:02:00.2]} 2...
cxb4 {[%clk 0:02:57.7]} 3. d4 {[%clk 0:01:58.8]} 3... e6 {[%clk 0:02:56.5]} 4.
Nf3 {[%clk 0:01:57.8]} 4... d5 {[%clk 0:02:56.8]} 5. e5 {[%clk 0:01:57.2]} 5...
Nc6 {[%clk 0:02:56.5]} 6. Bd3 {[%clk 0:01:55.4]} 6... Qb6 {[%clk 0:02:56.4]} 7.
O-O {[%clk 0:01:54.5]} 7... Bd7 {[%clk 0:02:56.5]} 8. Bb2 {[%clk 0:01:51.9]}
8... Nge7 {[%clk 0:02:56.2]} 9. a3 {[%clk 0:01:49.2]} 9... Ng6 {[%clk
0:02:52.8]} 10. axb4 {[%clk 0:01:47.3]} 10... Nxb4 {[%clk 0:02:51.8]} 11. Ba3
{[%clk 0:01:41.8]} 11... Nxd3 {[%clk 0:02:48.8]} 12. Qxd3 {[%clk 0:01:42.7]}
12... Bxa3 {[%clk 0:02:48.1]} 13. Qxa3 {[%clk 0:01:41.7]} 13... Bb5 {[%clk
0:02:45.4]} 14. Re1 {[%clk 0:01:36.9]} 14... Ne7 {[%clk 0:02:42.5]} 15. Nc3
{[%clk 0:01:34.2]} 15... Bc4 {[%clk 0:02:41.9]} 16. Na4 {[%clk 0:01:31.6]} 16...
Qc7 {[%clk 0:02:40]} 17. Nd2 {[%clk 0:01:28.5]} 17... b5 {[%clk 0:02:32]} 18.
Nxc4 {[%clk 0:01:26.4]} 18... bxc4 {[%clk 0:02:31.8]} 19. Nc5 {[%clk 0:01:18.7]}
19... Nc6 {[%clk 0:02:31.8]} 20. c3 {[%clk 0:01:17.5]} 20... O-O {[%clk
0:02:31.1]} 21. Reb1 {[%clk 0:01:13.9]} 21... Rab8 {[%clk 0:02:30.3]} 22. Rxb8
{[%clk 0:01:04.5]} 22... Qxb8 {[%clk 0:02:30]} 23. Qa6 {[%clk 0:00:59.5]} 23...
Qc7 {[%clk 0:02:28.9]} 24. Rb1 {[%clk 0:00:58.2]} 24... Na5 {[%clk 0:02:25.8]}
25. Rb5 {[%clk 0:00:53.1]} 25... Nb3 {[%clk 0:02:23.7]} 26. Nxb3 {[%clk
0:00:51.6]} 26... cxb3 {[%clk 0:02:24.6]} 27. Rxb3 {[%clk 0:00:51.7]} 27... Rb8
{[%clk 0:02:23.4]} 28. Rxb8+ {[%clk 0:00:38]} 28... Qxb8 {[%clk 0:02:24.3]} 29.
h4 {[%clk 0:00:32.6]} 29... Qb1+ {[%clk 0:02:23.6]} 30. Kh2 {[%clk 0:00:31.8]}
30... Qb8 {[%clk 0:02:22.4]} 31. h5 {[%clk 0:00:28.6]} 31... Kf8 {[%clk
0:02:17.1]} 32. g4 {[%clk 0:00:24.9]} 32... Qb6 {[%clk 0:02:13.4]} 33. Qxb6
{[%clk 0:00:15.1]} 33... axb6 {[%clk 0:02:14.3]} 34. Kg3 {[%clk 0:00:15.1]}
34... Ke7 {[%clk 0:02:14.8]} 35. Kf3 {[%clk 0:00:15.5]} 35... Kd7 {[%clk
0:02:15.4]} 36. Ke3 {[%clk 0:00:16]} 36... Kc7 {[%clk 0:02:16.1]} 37. Kd3 {[%clk
0:00:16.3]} 37... Kc6 {[%clk 0:02:17]} 38. Kc2 {[%clk 0:00:16.3]} 38... Kb5
{[%clk 0:02:15.2]} 39. Kb3 {[%clk 0:00:16.6]} 39... Ka5 {[%clk 0:01:55.7]} 40.
f4 {[%clk 0:00:15.4]} 40... f5 {[%clk 0:01:50.4]} 41. exf6 {[%clk 0:00:11.1]}
41... gxf6 {[%clk 0:01:50.3]} 42. g5 {[%clk 0:00:11.4]} 42... e5 {[%clk
0:01:43.5]} 43. dxe5 {[%clk 0:00:10]} 43... fxe5 {[%clk 0:01:42.8]} 44. fxe5
{[%clk 0:00:10.1]} 44... Kb5 {[%clk 0:01:42.8]} 45. g6 {[%clk 0:00:10.1]} 1-0

[Event "Late-Titled-Tuesday-Blitz-April-30-2024"]
[Site "Chess.com"]
[Date "2024.04.30"]
[Round "6"]
[White "Iuckyducky"]
[Black "mightysmasher"]
[Result "0-1"]
[WhiteElo "2242"]
[BlackElo "2538"]
[TimeControl "180+1"]
[EndTime "15:05:35 PDT"]
[Termination "mightysmasher won by resignation"]

1. e4 {[%clk 0:03:00.9]} 1... e6 {[%clk 0:02:54.3]} 2. Nc3 {[%clk 0:02:53.7]}
2... d5 {[%clk 0:02:53.1]} 3. d4 {[%clk 0:02:54.1]} 3... dxe4 {[%clk 0:02:50.4]}
4. Nxe4 {[%clk 0:02:54.4]} 4... Nd7 {[%clk 0:02:49.9]} 5. Nf3 {[%clk 0:02:49.6]}
5... Ngf6 {[%clk 0:02:49.2]} 6. Nxf6+ {[%clk 0:02:50.2]} 6... Nxf6 {[%clk
0:02:48.8]} 7. Bd3 {[%clk 0:02:50.5]} 7... c5 {[%clk 0:02:47.6]} 8. O-O {[%clk
0:02:50]} 8... cxd4 {[%clk 0:02:47.4]} 9. Nxd4 {[%clk 0:02:50.1]} 9... Bc5
{[%clk 0:02:47.7]} 10. Nb3 {[%clk 0:02:48.5]} 10... Bd6 {[%clk 0:02:47.9]} 11.
Bg5 {[%clk 0:02:18.7]} 11... Bd7 {[%clk 0:02:45.8]} 12. h3 {[%clk 0:02:17.6]}
12... Qc7 {[%clk 0:02:45.3]} 13. a4 {[%clk 0:02:15.1]} 13... O-O-O {[%clk
0:02:44.3]} 14. a5 {[%clk 0:02:06]} 14... h6 {[%clk 0:02:42.1]} 15. Be3 {[%clk
0:02:05.4]} 15... Kb8 {[%clk 0:02:41.6]} 16. a6 {[%clk 0:02:04.5]} 16... b6
{[%clk 0:02:37.5]} 17. Nd4 {[%clk 0:02:04.9]} 17... e5 {[%clk 0:02:35.5]} 18.
Nb5 {[%clk 0:02:02.8]} 18... Bxb5 {[%clk 0:02:35.2]} 19. Bxb5 {[%clk 0:02:03.7]}
19... e4 {[%clk 0:02:35.1]} 20. Qe2 {[%clk 0:01:38.2]} 20... Nd5 {[%clk
0:02:32.9]} 21. Ra4 {[%clk 0:01:21.3]} 21... f5 {[%clk 0:02:26.4]} 22. Rc4
{[%clk 0:01:11.6]} 22... Qe7 {[%clk 0:02:25.1]} 23. Bc6 {[%clk 0:00:55.1]} 23...
Nxe3 {[%clk 0:02:15.5]} 24. Qxe3 {[%clk 0:00:56]} 24... g5 {[%clk 0:02:11.1]}
25. Bb7 {[%clk 0:00:44.4]} 25... Bc5 {[%clk 0:02:04.8]} 26. Qc3 {[%clk 0:00:40]}
26... Rhe8 {[%clk 0:01:59.6]} 27. b4 {[%clk 0:00:40.1]} 27... Bd6 {[%clk
0:01:57.8]} 28. Rc6 {[%clk 0:00:33.7]} 28... Bc7 {[%clk 0:01:54.8]} 29. Qc4
{[%clk 0:00:31.6]} 29... Qe5 {[%clk 0:01:53.9]} 30. g3 {[%clk 0:00:28]} 30... e3
{[%clk 0:01:53.5]} 31. f4 {[%clk 0:00:19]} 31... gxf4 {[%clk 0:01:52.9]} 32.
Rxh6 {[%clk 0:00:08.2]} 32... fxg3 {[%clk 0:01:45.7]} 33. Bg2 {[%clk 0:00:08]}
33... e2 {[%clk 0:01:35]} 34. Re1 {[%clk 0:00:08]} 34... Rd1 {[%clk 0:01:31.5]}
35. Rxd1 {[%clk 0:00:00.8]} 35... exd1=Q+ {[%clk 0:01:30.7]} 36. Bf1 {[%clk
0:00:01.4]} 36... Qe3+ {[%clk 0:01:30.4]} 0-1

[Event "Late-Titled-Tuesday-Blitz-April-30-2024"]
[Site "Chess.com"]
[Date "2024.04.30"]
[Round "6"]
[White "kalxandria"]
[Black "sansanathalia"]
[Result "0-1"]
[WhiteElo "2222"]
[BlackElo "2415"]
[TimeControl "180+1"]
[EndTime "15:05:40 PDT"]
[Termination "sansanathalia won by resignation"]

1. e4 {[%clk 0:03:00.9]} 1... c5 {[%clk 0:02:49.3]} 2. Nf3 {[%clk 0:02:59.7]}
2... d6 {[%clk 0:02:46.9]} 3. d4 {[%clk 0:02:58.8]} 3... cxd4 {[%clk 0:02:46.4]}
4. Nxd4 {[%clk 0:02:59.7]} 4... Nf6 {[%clk 0:02:46]} 5. Nc3 {[%clk 0:02:59.7]}
5... a6 {[%clk 0:02:45.2]} 6. f4 {[%clk 0:02:56.6]} 6... e5 {[%clk 0:02:43.8]}
7. Nf3 {[%clk 0:02:53]} 7... Nbd7 {[%clk 0:02:42.1]} 8. Bc4 {[%clk 0:02:50.3]}
8... Qc7 {[%clk 0:02:34.4]} 9. Qe2 {[%clk 0:02:48.7]} 9... Be7 {[%clk
0:02:23.1]} 10. Ng5 {[%clk 0:02:43.9]} 10... O-O {[%clk 0:02:21.4]} 11. O-O
{[%clk 0:02:27.8]} 11... h6 {[%clk 0:02:11.8]} 12. Nxf7 {[%clk 0:02:20.4]} 12...
Rxf7 {[%clk 0:02:10.9]} 13. Bxf7+ {[%clk 0:02:07.3]} 13... Kxf7 {[%clk
0:02:09.6]} 14. Nd5 {[%clk 0:02:06.4]} 14... Nxd5 {[%clk 0:01:44.8]} 15. exd5
{[%clk 0:02:00.9]} 15... Nf6 {[%clk 0:01:45.3]} 16. fxe5 {[%clk 0:01:58.8]}
16... dxe5 {[%clk 0:01:44]} 17. c4 {[%clk 0:01:55.5]} 17... b5 {[%clk
0:01:42.3]} 18. b3 {[%clk 0:01:45.6]} 18... bxc4 {[%clk 0:01:37.2]} 19. bxc4
{[%clk 0:01:44.2]} 19... Rb8 {[%clk 0:01:27.7]} 20. Be3 {[%clk 0:01:34.8]} 20...
Kg8 {[%clk 0:01:17.1]} 21. Kh1 {[%clk 0:01:33.1]} 21... Bg4 {[%clk 0:01:15.5]}
22. Qd3 {[%clk 0:01:28.7]} 22... Bd6 {[%clk 0:01:06.3]} 23. Bxh6 {[%clk
0:01:24.3]} 23... e4 {[%clk 0:00:58.9]} 24. Qe3 {[%clk 0:01:11.5]} 24... Be5
{[%clk 0:00:20.6]} 25. Rab1 {[%clk 0:01:05.1]} 25... Rxb1 {[%clk 0:00:16.9]} 26.
Rxb1 {[%clk 0:01:06]} 26... gxh6 {[%clk 0:00:17.2]} 27. Qxh6 {[%clk 0:01:04.7]}
27... Qg7 {[%clk 0:00:14.6]} 28. Rb8+ {[%clk 0:00:58.2]} 28... Bxb8 {[%clk
0:00:14.2]} 29. Qf4 {[%clk 0:00:53.9]} 29... Bxf4 {[%clk 0:00:13.7]} 0-1

[Event "Late-Titled-Tuesday-Blitz-April-30-2024"]
[Site "Chess.com"]
[Date "2024.04.30"]
[Round "6"]
[White "Ajedrez_con_German"]
[Black "Nemsko"]
[Result "1-0"]
[WhiteElo "2633"]
[BlackElo "2456"]
[TimeControl "180+1"]
[EndTime "15:05:44 PDT"]
[Termination "Ajedrez_con_German won by resignation"]

1. a3 {[%clk 0:02:56.1]} 1... c6 {[%clk 0:02:58.4]} 2. e3 {[%clk 0:02:55.9]}
2... e6 {[%clk 0:02:57.2]} 3. c4 {[%clk 0:02:55.8]} 3... g6 {[%clk 0:02:57.7]}
4. Nf3 {[%clk 0:02:55.8]} 4... a6 {[%clk 0:02:58.2]} 5. Nc3 {[%clk 0:02:56.2]}
5... Bg7 {[%clk 0:02:57]} 6. d4 {[%clk 0:02:56.7]} 6... Ne7 {[%clk 0:02:57.4]}
7. Be2 {[%clk 0:02:57.1]} 7... d5 {[%clk 0:02:57.8]} 8. O-O {[%clk 0:02:57.4]}
8... O-O {[%clk 0:02:58]} 9. b3 {[%clk 0:02:56.9]} 9... Nd7 {[%clk 0:02:53]} 10.
Bb2 {[%clk 0:02:56.9]} 10... b5 {[%clk 0:02:53.3]} 11. cxd5 {[%clk 0:02:53.5]}
11... cxd5 {[%clk 0:02:51.5]} 12. Rc1 {[%clk 0:02:53.4]} 12... Bb7 {[%clk
0:02:50.8]} 13. Ne1 {[%clk 0:02:53.5]} 13... Nb6 {[%clk 0:02:46]} 14. Nd3 {[%clk
0:02:53.6]} 14... Nf5 {[%clk 0:02:27.2]} 15. Nc5 {[%clk 0:02:50]} 15... Bc6
{[%clk 0:02:27.2]} 16. Na2 {[%clk 0:02:49.7]} 16... Nd6 {[%clk 0:02:15.7]} 17.
Nxa6 {[%clk 0:02:32.9]} 17... Rxa6 {[%clk 0:02:07]} 18. Rxc6 {[%clk 0:02:32.3]}
18... Qd7 {[%clk 0:02:00]} 19. Nb4 {[%clk 0:02:29.2]} 19... Ndc8 {[%clk
0:01:32.5]} 20. Bxb5 {[%clk 0:02:22.1]} 20... Ra5 {[%clk 0:01:33]} 21. Rxb6
{[%clk 0:02:10.1]} 21... Rxb5 {[%clk 0:01:33.1]} 22. Rxb5 {[%clk 0:02:10]} 22...
Qxb5 {[%clk 0:01:34]} 23. Qd3 {[%clk 0:02:08.5]} 23... Qd7 {[%clk 0:01:30.6]}
24. Rc1 {[%clk 0:02:08.2]} 24... Nd6 {[%clk 0:01:29.7]} 25. Qa6 {[%clk
0:01:57.2]} 25... Ne4 {[%clk 0:01:27.6]} 26. Nd3 {[%clk 0:01:42.4]} 26... Qe7
{[%clk 0:01:21.6]} 27. Nc5 {[%clk 0:01:37.3]} 27... Qh4 {[%clk 0:00:56.9]} 28.
Nxe4 {[%clk 0:01:35.6]} 28... Qxe4 {[%clk 0:00:57.8]} 29. b4 {[%clk 0:01:23.8]}
29... h5 {[%clk 0:00:57.2]} 30. Qe2 {[%clk 0:01:19.5]} 30... h4 {[%clk
0:00:54.9]} 31. h3 {[%clk 0:01:20]} 31... f5 {[%clk 0:00:40.4]} 32. Qc2 {[%clk
0:01:16.4]} 32... f4 {[%clk 0:00:26.2]} 33. Qxe4 {[%clk 0:01:14.4]} 33... dxe4
{[%clk 0:00:27.1]} 34. exf4 {[%clk 0:00:59.6]} 34... Rxf4 {[%clk 0:00:26.6]} 35.
Rc8+ {[%clk 0:00:58.5]} 35... Kh7 {[%clk 0:00:25.8]} 36. Rc7 {[%clk 0:00:56.2]}
36... Kh6 {[%clk 0:00:25.9]} 37. Bc1 {[%clk 0:00:54.7]} 1-0

[Event "Late-Titled-Tuesday-Blitz-April-30-2024"]
[Site "Chess.com"]
[Date "2024.04.30"]
[Round "6"]
[White "VirtualCoach"]
[Black "GolfBeforeChess"]
[Result "0-1"]
[WhiteElo "2062"]
[BlackElo "2318"]
[TimeControl "180+1"]
[EndTime "15:05:44 PDT"]
[Termination "GolfBeforeChess won by resignation"]

1. Nf3 {[%clk 0:03:00.9]} 1... Nf6 {[%clk 0:02:59.8]} 2. b3 {[%clk 0:03:01.1]}
2... d5 {[%clk 0:02:59.6]} 3. Bb2 {[%clk 0:03:01.5]} 3... Bf5 {[%clk 0:03:00.2]}
4. g3 {[%clk 0:03:01.3]} 4... c6 {[%clk 0:03:00.6]} 5. Bg2 {[%clk 0:03:01.8]}
5... Nbd7 {[%clk 0:03:01.2]} 6. O-O {[%clk 0:03:01.9]} 6... h6 {[%clk
0:03:01.9]} 7. d3 {[%clk 0:02:59.7]} 7... e6 {[%clk 0:03:02.1]} 8. Re1 {[%clk
0:02:59.8]} 8... Be7 {[%clk 0:03:02]} 9. Nbd2 {[%clk 0:02:59.5]} 9... O-O {[%clk
0:03:01.6]} 10. e4 {[%clk 0:02:59.2]} 10... dxe4 {[%clk 0:03:01.4]} 11. dxe4
{[%clk 0:03:00.1]} 11... Bh7 {[%clk 0:03:01.8]} 12. c4 {[%clk 0:02:58]} 12...
Nc5 {[%clk 0:03:01.7]} 13. Ne5 {[%clk 0:02:49.8]} 13... Nd3 {[%clk 0:02:47.2]}
14. Nxd3 {[%clk 0:02:48.6]} 14... Qxd3 {[%clk 0:02:47.3]} 15. Re3 {[%clk
0:02:46.5]} 15... Qd7 {[%clk 0:02:40.4]} 16. Qc2 {[%clk 0:02:45.2]} 16... Rfd8
{[%clk 0:02:39.5]} 17. Rd1 {[%clk 0:02:43]} 17... Ng4 {[%clk 0:02:07.7]} 18.
Ree1 {[%clk 0:02:01.9]} 18... Bf6 {[%clk 0:02:08]} 19. Bxf6 {[%clk 0:01:58.5]}
19... Nxf6 {[%clk 0:02:07.1]} 20. Qb2 {[%clk 0:01:50.7]} 20... Qd4 {[%clk
0:02:02.4]} 21. Qxd4 {[%clk 0:01:49]} 21... Rxd4 {[%clk 0:02:02.6]} 22. e5
{[%clk 0:01:47]} 22... Rad8 {[%clk 0:01:54.7]} 23. exf6 {[%clk 0:01:39.6]} 23...
Rxd2 {[%clk 0:01:54.9]} 24. Rxd2 {[%clk 0:01:39.8]} 24... Rxd2 {[%clk
0:01:54.6]} 25. a4 {[%clk 0:01:35.6]} 25... gxf6 {[%clk 0:01:52.9]} 26. Be4
{[%clk 0:01:20.2]} 26... Bxe4 {[%clk 0:01:45.3]} 27. Rxe4 {[%clk 0:01:21.1]}
27... Rb2 {[%clk 0:01:44.6]} 28. Re3 {[%clk 0:01:21]} 28... a5 {[%clk
0:01:42.8]} 29. Rd3 {[%clk 0:01:19.9]} 29... Kf8 {[%clk 0:01:40.4]} 30. Kg2
{[%clk 0:01:18.2]} 30... Ke7 {[%clk 0:01:40.4]} 31. Rf3 {[%clk 0:01:17.4]} 31...
f5 {[%clk 0:01:40.4]} 32. Kh3 {[%clk 0:01:16.6]} 32... Kd6 {[%clk 0:01:37.8]}
33. Kh4 {[%clk 0:01:09.4]} 33... Kc5 {[%clk 0:01:33.7]} 34. Kh5 {[%clk
0:00:59.3]} 34... Kb4 {[%clk 0:01:33.3]} 35. Kxh6 {[%clk 0:00:58.6]} 35... Rxb3
{[%clk 0:01:33.7]} 36. Rf4 {[%clk 0:00:55]} 36... Kxa4 {[%clk 0:01:33.4]} 37. h4
{[%clk 0:00:54.2]} 37... Kb4 {[%clk 0:01:32.1]} 38. Kg7 {[%clk 0:00:52.9]} 38...
a4 {[%clk 0:01:31.7]} 39. h5 {[%clk 0:00:51.9]} 39... a3 {[%clk 0:01:31.9]} 40.
c5+ {[%clk 0:00:41.8]} 40... Kb5 {[%clk 0:01:31.8]} 41. h6 {[%clk 0:00:15.7]}
41... a2 {[%clk 0:01:31.8]} 42. h7 {[%clk 0:00:16.3]} 42... a1=Q+ {[%clk
0:01:31.7]} 43. Kg8 {[%clk 0:00:17.2]} 43... Ra3 {[%clk 0:01:28]} 44. h8=Q
{[%clk 0:00:18.1]} 44... Ra8+ {[%clk 0:01:27.8]} 45. Kxf7 {[%clk 0:00:16]} 45...
Qxh8 {[%clk 0:01:26.7]} 0-1

[Event "Late-Titled-Tuesday-Blitz-April-30-2024"]
[Site "Chess.com"]
[Date "2024.04.30"]
[Round "6"]
[White "GoltsevDmitry2000"]
[Black "chessisveryfun1264"]
[Result "1-0"]
[WhiteElo "2820"]
[BlackElo "2622"]
[TimeControl "180+1"]
[EndTime "15:05:46 PDT"]
[Termination "GoltsevDmitry2000 won by resignation"]

1. e4 {[%clk 0:02:59.7]} 1... e6 {[%clk 0:02:59.4]} 2. d4 {[%clk 0:02:59.4]}
2... d5 {[%clk 0:03:00]} 3. exd5 {[%clk 0:03:00.3]} 3... exd5 {[%clk 0:03:00.7]}
4. Nf3 {[%clk 0:03:00]} 4... Nc6 {[%clk 0:03:00.8]} 5. c4 {[%clk 0:02:59.3]}
5... Bg4 {[%clk 0:02:54.3]} 6. Nc3 {[%clk 0:02:58.5]} 6... Nf6 {[%clk
0:02:54.4]} 7. Be2 {[%clk 0:02:58.2]} 7... dxc4 {[%clk 0:02:52.5]} 8. Bxc4
{[%clk 0:02:59.1]} 8... Bd6 {[%clk 0:02:51.6]} 9. O-O {[%clk 0:02:59]} 9... O-O
{[%clk 0:02:48.6]} 10. Bg5 {[%clk 0:02:59.2]} 10... Nxd4 {[%clk 0:02:33.6]} 11.
Qxd4 {[%clk 0:02:56.9]} 11... Bxf3 {[%clk 0:02:33.9]} 12. Bxf6 {[%clk
0:02:55.4]} 12... gxf6 {[%clk 0:02:32.6]} 13. Qh4 {[%clk 0:02:54.4]} 13... Bc6
{[%clk 0:02:25.8]} 14. Ne4 {[%clk 0:02:48.3]} 14... Bxe4 {[%clk 0:02:02.7]} 15.
Qxe4 {[%clk 0:02:49.2]} 15... Qe7 {[%clk 0:02:02.1]} 16. Qxb7 {[%clk 0:02:33]}
16... Qe5 {[%clk 0:01:57.6]} 17. g3 {[%clk 0:02:30]} 17... Rab8 {[%clk
0:01:46.7]} 18. Qxa7 {[%clk 0:02:28.5]} 18... Rxb2 {[%clk 0:01:46.6]} 19. Rae1
{[%clk 0:02:24.4]} 19... Qf5 {[%clk 0:01:40.6]} 20. Qd4 {[%clk 0:02:18.2]} 20...
Be5 {[%clk 0:01:35.1]} 21. Qe3 {[%clk 0:02:05.8]} 21... Rd8 {[%clk 0:01:31.1]}
22. Rd1 {[%clk 0:01:57.5]} 22... Rxd1 {[%clk 0:01:10.4]} 23. Rxd1 {[%clk
0:01:58.4]} 23... Rb1 {[%clk 0:01:09.9]} 24. Rxb1 {[%clk 0:01:51.7]} 24... Qxb1+
{[%clk 0:01:10.8]} 25. Kg2 {[%clk 0:01:51.9]} 25... Qb7+ {[%clk 0:01:08.2]} 26.
Qf3 {[%clk 0:01:51.5]} 26... Qxf3+ {[%clk 0:01:07.7]} 27. Kxf3 {[%clk
0:01:52.4]} 27... Kf8 {[%clk 0:01:06.7]} 28. Ke4 {[%clk 0:01:50.2]} 28... Ke7
{[%clk 0:01:06.9]} 29. Kd5 {[%clk 0:01:49.7]} 29... Kd7 {[%clk 0:01:05.2]} 30.
Kc5 {[%clk 0:01:47.9]} 30... Ke7 {[%clk 0:00:54.9]} 31. a4 {[%clk 0:01:41.3]}
31... f5 {[%clk 0:00:53.1]} 32. a5 {[%clk 0:01:29.5]} 32... Bc3 {[%clk
0:00:37.1]} 33. a6 {[%clk 0:01:27.9]} 33... Be1 {[%clk 0:00:36.1]} 34. f4 {[%clk
0:01:24.2]} 34... Kd7 {[%clk 0:00:19.7]} 35. Bxf7 {[%clk 0:01:23.7]} 35... Bf2+
{[%clk 0:00:15.6]} 36. Kd5 {[%clk 0:01:20.2]} 36... Bg1 {[%clk 0:00:12.5]} 37.
Be6+ {[%clk 0:01:18.5]} 37... Ke7 {[%clk 0:00:11.2]} 38. Bxf5 {[%clk 0:01:18.6]}
38... h5 {[%clk 0:00:11.7]} 39. Kc6 {[%clk 0:01:18.1]} 39... Kd8 {[%clk
0:00:09.3]} 40. Kb7 {[%clk 0:01:17.5]} 1-0

[Event "Late-Titled-Tuesday-Blitz-April-30-2024"]
[Site "Chess.com"]
[Date "2024.04.30"]
[Round "6"]
[White "1g60-1"]
[Black "FMalexhdez"]
[Result "1-0"]
[WhiteElo "2436"]
[BlackElo "2245"]
[TimeControl "180+1"]
[EndTime "15:05:47 PDT"]
[Termination "1g60-1 won on time"]

1. e4 {[%clk 0:03:00.9]} 1... c5 {[%clk 0:02:59.3]} 2. Nf3 {[%clk 0:03:01.3]}
2... d6 {[%clk 0:02:59.3]} 3. d4 {[%clk 0:03:01.7]} 3... cxd4 {[%clk 0:02:59.4]}
4. Nxd4 {[%clk 0:03:02.6]} 4... Nf6 {[%clk 0:02:59.6]} 5. Nc3 {[%clk 0:03:03.2]}
5... a6 {[%clk 0:03:00]} 6. Be3 {[%clk 0:03:03.4]} 6... e5 {[%clk 0:02:58.9]} 7.
Nb3 {[%clk 0:03:03.7]} 7... Be6 {[%clk 0:02:58.1]} 8. f3 {[%clk 0:03:04.3]} 8...
Nbd7 {[%clk 0:02:58.1]} 9. Qd2 {[%clk 0:03:05]} 9... Rc8 {[%clk 0:02:58.1]} 10.
O-O-O {[%clk 0:03:05.1]} 10... b5 {[%clk 0:02:57.4]} 11. g4 {[%clk 0:03:05.3]}
11... h6 {[%clk 0:02:55.9]} 12. Nd5 {[%clk 0:03:02.2]} 12... Bxd5 {[%clk
0:02:54.6]} 13. exd5 {[%clk 0:03:02.7]} 13... Nb6 {[%clk 0:02:53.2]} 14. Bxb6
{[%clk 0:03:02.8]} 14... Qxb6 {[%clk 0:02:52.8]} 15. Kb1 {[%clk 0:03:03.1]}
15... Be7 {[%clk 0:02:52]} 16. h4 {[%clk 0:03:02.5]} 16... Nd7 {[%clk
0:02:46.7]} 17. Bd3 {[%clk 0:02:59.7]} 17... Nc5 {[%clk 0:02:45.5]} 18. Be4
{[%clk 0:02:50.7]} 18... Nxe4 {[%clk 0:02:36.2]} 19. fxe4 {[%clk 0:02:51.6]}
19... h5 {[%clk 0:02:25.1]} 20. g5 {[%clk 0:02:49.1]} 20... g6 {[%clk
0:02:23.8]} 21. Na5 {[%clk 0:02:45.6]} 21... O-O {[%clk 0:02:18.1]} 22. Nc6
{[%clk 0:02:41.9]} 22... Rfe8 {[%clk 0:02:16.5]} 23. Rhf1 {[%clk 0:02:26.6]}
23... Bf8 {[%clk 0:02:14.6]} 24. Rf2 {[%clk 0:02:09]} 24... Rc7 {[%clk
0:02:10.9]} 25. Rdf1 {[%clk 0:02:08.6]} 25... Bg7 {[%clk 0:02:09.9]} 26. Qd3
{[%clk 0:02:02.1]} 26... a5 {[%clk 0:02:01.1]} 27. c4 {[%clk 0:02:01.5]} 27...
b4 {[%clk 0:01:47]} 28. Qc2 {[%clk 0:01:47.4]} 28... a4 {[%clk 0:01:45.4]} 29.
Qxa4 {[%clk 0:01:44]} 29... Qe3 {[%clk 0:01:39.9]} 30. Qc2 {[%clk 0:01:33.7]}
30... b3 {[%clk 0:01:19.4]} 31. axb3 {[%clk 0:01:30.3]} 31... Ra8 {[%clk
0:01:17.4]} 32. Rf3 {[%clk 0:01:22.9]} 32... Qb6 {[%clk 0:01:09.1]} 33. Qf2
{[%clk 0:01:14.6]} 33... Qa6 {[%clk 0:01:07.2]} 34. Rxf7 {[%clk 0:01:09.4]} 1-0

[Event "Late-Titled-Tuesday-Blitz-April-30-2024"]
[Site "Chess.com"]
[Date "2024.04.30"]
[Round "6"]
[White "lupta_robin"]
[Black "nochewycandy"]
[Result "0-1"]
[WhiteElo "2596"]
[BlackElo "2815"]
[TimeControl "180+1"]
[EndTime "15:05:51 PDT"]
[Termination "nochewycandy won by resignation"]

1. b3 {[%clk 0:03:00.9]} 1... d5 {[%clk 0:02:52.7]} 2. Bb2 {[%clk 0:03:01]} 2...
Bg4 {[%clk 0:02:53.2]} 3. g3 {[%clk 0:02:54.7]} 3... Nc6 {[%clk 0:02:42.4]} 4.
Nf3 {[%clk 0:02:46.3]} 4... Bxf3 {[%clk 0:02:41.9]} 5. exf3 {[%clk 0:02:45.9]}
5... a6 {[%clk 0:02:42.1]} 6. f4 {[%clk 0:02:45.4]} 6... e6 {[%clk 0:02:38.1]}
7. Bg2 {[%clk 0:02:44]} 7... Nge7 {[%clk 0:02:29.6]} 8. d3 {[%clk 0:02:41.9]}
8... h5 {[%clk 0:02:18.7]} 9. h4 {[%clk 0:02:38.7]} 9... Nf5 {[%clk 0:02:14.3]}
10. Nd2 {[%clk 0:02:38.7]} 10... Bc5 {[%clk 0:02:10.9]} 11. Nf3 {[%clk 0:02:36]}
11... Qe7 {[%clk 0:02:05.9]} 12. Ne5 {[%clk 0:02:24.9]} 12... Nxe5 {[%clk
0:02:02.7]} 13. fxe5 {[%clk 0:02:25.2]} 13... O-O-O {[%clk 0:01:57.1]} 14. Qd2
{[%clk 0:02:22.7]} 14... Kb8 {[%clk 0:01:48.5]} 15. O-O-O {[%clk 0:02:22.4]}
15... Ba3 {[%clk 0:01:47.2]} 16. Qf4 {[%clk 0:02:06.1]} 16... Bxb2+ {[%clk
0:01:43]} 17. Kxb2 {[%clk 0:02:07]} 17... Qc5 {[%clk 0:01:39.3]} 18. d4 {[%clk
0:01:49.6]} 18... Qb6 {[%clk 0:01:34.2]} 19. Rd3 {[%clk 0:01:48.6]} 19... g6
{[%clk 0:01:31.4]} 20. Rhd1 {[%clk 0:01:44.1]} 20... c5 {[%clk 0:01:27.7]} 21.
dxc5 {[%clk 0:01:42.7]} 21... Qxc5 {[%clk 0:01:28.6]} 22. Rc3 {[%clk 0:01:42.7]}
22... Qb6 {[%clk 0:01:27.9]} 23. Rdd3 {[%clk 0:01:40.3]} 23... Rc8 {[%clk
0:01:22.6]} 24. Bf1 {[%clk 0:01:11.5]} 24... d4 {[%clk 0:01:10.2]} 25. Rxc8+
{[%clk 0:01:10.8]} 25... Rxc8 {[%clk 0:01:11.1]} 26. Rd2 {[%clk 0:00:21.6]}
26... Qc5 {[%clk 0:01:03.2]} 27. Bd3 {[%clk 0:00:21.9]} 27... Qc3+ {[%clk
0:01:03]} 28. Kb1 {[%clk 0:00:21.2]} 28... Ne7 {[%clk 0:01:02.9]} 29. Re2 {[%clk
0:00:17.2]} 29... Nd5 {[%clk 0:00:58.1]} 30. Qd2 {[%clk 0:00:17.6]} 30... Qc5
{[%clk 0:00:56.3]} 31. Re1 {[%clk 0:00:17]} 31... Qa3 {[%clk 0:00:55.5]} 32. c4
{[%clk 0:00:13.2]} 32... dxc3 {[%clk 0:00:50.3]} 33. Qc2 {[%clk 0:00:13.6]}
33... Nb4 {[%clk 0:00:50.4]} 0-1